bitfinex/quotes_BTCUSD_20240723
["timestamp","ask_amount","ask_price","bid_price","bid_amount"]
[1721770531971,0.30259,66060.0,66059.0,2.72680371]
[1721770532248,0.30259,66060.0,66059.0,2.75480371]
[1721770532583,0.30259,66060.0,66059.0,2.84034881]
[1721770532761,0.30259,66060.0,66059.0,2.77330229]
[1721770532964,0.30259,66060.0,66059.0,2.80130229]
[1721770534253,0.30259,66060.0,66059.0,2.69930229]
[1721770534470,0.30259,66060.0,66059.0,2.79238254]
[1721770534594,0.30259,66060.0,66059.0,2.70175719]
[1721770534795,0.30259,66060.0,66059.0,2.05174348]
[1721770534995,0.30259,66060.0,66059.0,2.79236943]
[1721770535195,0.30259,66060.0,66059.0,2.84540617]
[1721770535394,0.0612,66069.0,66068.0,0.756795]
[1721770535759,0.0612,66069.0,66068.0,1.13983298]
[1721770536647,0.0612,66069.0,66068.0,1.45655098]
[1721770536804,0.0612,66069.0,66068.0,1.47055098]
[1721770538310,0.0612,66069.0,66068.0,1.47055338]
[1721770541109,0.0612,66069.0,66068.0,0.99781547]
[1721770541326,0.06204,66069.0,66068.0,0.99781547]
[1721770541568,0.06204,66069.0,66068.0,0.872095]
[1721770541778,0.06024,66069.0,66068.0,0.99781328]
[1721770543169,0.06024,66069.0,66068.0,0.15371828]
[1721770543306,0.15699731,66069.0,66068.0,0.15371828]
[1721770544369,0.15699731,66069.0,66068.0,0.12571828]
[1721770544878,0.15699731,66069.0,66068.0,0.12572717]
[1721770545084,0.15699731,66069.0,66068.0,0.12572775]
[1721770545806,0.15699731,66069.0,66068.0,0.15072775]
[1721770548013,0.30835331,66069.0,66068.0,0.15072775]
[1721770548261,0.61106631,66069.0,66068.0,0.15072775]
[1721770548477,0.30835331,66069.0,66068.0,0.15073005]
[1721770548689,0.15699731,66069.0,66068.0,0.15073005]
[1721770549524,0.30835331,66069.0,66068.0,0.15073005]
[1721770550099,0.15699731,66069.0,66068.0,0.15073005]
[1721770550927,0.15699731,66069.0,66068.0,0.025]
[1721770551241,0.15699731,66069.0,66068.0,0.15073125]
[1721770551766,0.30835331,66069.0,66068.0,0.025]
[1721770551925,0.30835331,66069.0,66068.0,0.15073128]
[1721770552712,0.61106631,66069.0,66068.0,0.15073128]
[1721770553609,0.91377931,66069.0,66068.0,0.15073128]
[1721770553858,0.61106631,66069.0,66068.0,0.15073128]
[1721770554037,0.91377931,66069.0,66068.0,0.15073128]
[1721770555005,0.91377931,66069.0,66068.0,0.025]
[1721770556947,1.21649231,66069.0,66068.0,0.025]
[1721770566844,1.22549931,66069.0,66068.0,0.025]
[1721770571763,1.21649231,66069.0,66068.0,0.025]
[1721770574095,1.21649231,66069.0,66068.0,0.025913]
[1721770583743,1.21649231,66069.0,66068.0,0.15164594]
[1721770585634,1.21649231,66069.0,66068.0,0.15164593]
[1721770586662,1.21649231,66069.0,66068.0,0.025913]
[1721770586910,1.21649231,66069.0,66068.0,0.013913]
[1721770587093,1.21649231,66069.0,66068.0,0.018913]
[1721770587297,1.51920531,66069.0,66068.0,0.018913]
[1721770587512,1.21649231,66069.0,66068.0,0.018913]
[1721770587720,1.36351222,66069.0,66068.0,0.005913]
[1721770587868,1.36351222,66069.0,66068.0,0.010913]
[1721770588473,1.22351222,66069.0,66068.0,0.010913]
[1721770591874,1.07649231,66069.0,66068.0,0.010913]
[1721770614600,1.22119231,66069.0,66068.0,0.010913]
[1721770625660,1.36821222,66069.0,66068.0,0.010913]
[1721770627544,1.07649231,66069.0,66068.0,0.010913]
[1721770627754,1.16379231,66069.0,66068.0,0.010913]
[1721770641278,1.75032522,66069.0,66068.0,0.010913]
[1721770642071,1.75032522,66069.0,66068.0,0.005913]
[1721770642412,1.75232522,66069.0,66068.0,0.000913]
[1721770642526,1.75432522,66069.0,66068.0,0.000913]
[1721770643027,1.22751222,66069.0,66068.0,0.000913]
[1721770643435,1.31481222,66069.0,66068.0,0.000913]
[1721770643628,1.31281222,66069.0,66068.0,0.000913]
[1721770643879,1.31481222,66069.0,66068.0,0.000913]
[1721770644685,1.45161222,66069.0,66068.0,0.000913]
[1721770645167,1.95128787,66069.0,66068.0,0.000913]
[1721770646509,2.05128787,66069.0,66068.0,0.000913]
[1721770648900,2.35400787,66069.0,66068.0,0.000913]
[1721770649128,2.36344001,66069.0,66068.0,0.000913]
[1721770649326,2.66615301,66069.0,66068.0,0.000913]
[1721770650214,2.66615326,66069.0,66068.0,0.000913]
[1721770651671,2.76615326,66069.0,66068.0,0.000913]
[1721770651875,2.81615326,66069.0,66068.0,0.000913]
[1721770652945,2.81415326,66069.0,66068.0,0.000913]
[1721770653346,2.81215326,66069.0,66068.0,0.000913]
[1721770653580,2.80272087,66069.0,66068.0,0.000913]
[1721770653791,2.81215383,66069.0,66068.0,0.000913]
[1721770653990,1.362478,66056.0,66055.0,0.000913]
[1721770654227,1.89951791,66056.0,66055.0,0.000913]
[1721770654428,1.91577381,66056.0,66055.0,0.000913]
[1721770655224,1.91577381,66056.0,66055.0,0.008913]
[1721770655971,1.91577381,66056.0,66055.0,0.004913]
[1721770656488,1.91577381,66056.0,66055.0,0.000913]
[1721770657064,2.06273646,66056.0,66055.0,0.000913]
[1721770657270,2.14333646,66056.0,66055.0,0.000913]
[1721770657670,2.14133646,66056.0,66055.0,0.000913]
[1721770657848,2.14333646,66056.0,66055.0,0.000913]
[1721770658279,2.19333646,66056.0,66055.0,0.000913]
[1721770658483,2.14633646,66056.0,66055.0,0.000913]
[1721770658847,2.20493646,66056.0,66055.0,0.000913]
[1721770659229,2.20793646,66056.0,66055.0,0.000913]
[1721770659429,1.97367381,66056.0,66055.0,0.000913]
[1721770659627,2.06097381,66056.0,66055.0,0.000913]
[1721770660730,1.83347381,66056.0,66055.0,0.000913]
[1721770660930,1.92077381,66056.0,66055.0,0.000913]
[1721770662163,1.83347381,66056.0,66055.0,0.000913]
[1721770662344,1.92077381,66056.0,66055.0,0.000913]
[1721770663755,1.83347381,66056.0,66055.0,0.07440242]
[1721770663955,1.92077381,66056.0,66055.0,0.07440242]
[1721770664531,1.91877381,66056.0,66055.0,0.07440242]
[1721770664934,1.91577381,66056.0,66055.0,0.07440242]
[1721770665160,1.91577381,66056.0,66055.0,0.000913]
[1721770665367,1.91777381,66056.0,66055.0,0.000913]
[1721770665975,1.91877381,66056.0,66055.0,0.000913]
[1721770666546,1.3806809,66056.0,66055.0,0.21540242]
[1721770666815,1.4689809,66056.0,66055.0,0.21540242]
[1721770667442,1.4669809,66056.0,66055.0,0.21540242]
[1721770668120,1.0769079,66056.0,66055.0,0.21540242]
[1721770668347,0.4713619,66056.0,66055.0,0.21540242]
[1721770668544,0.3199759,66056.0,66055.0,0.36679042]
[1721770668910,0.3199759,66056.0,66055.0,0.21540242]
[1721770669961,0.3189759,66056.0,66055.0,0.21540242]
[1721770670163,0.3189759,66056.0,66055.0,0.21840242]
[1721770670376,0.3189759,66056.0,66055.0,0.22340242]
[1721770671146,0.3189759,66056.0,66055.0,0.22040242]
[1721770671439,0.3189759,66056.0,66055.0,0.22440242]
[1721770672001,0.3189759,66056.0,66055.0,0.37579042]
[1721770672208,0.3189759,66056.0,66055.0,0.22440242]
[1721770676494,0.31879373,66056.0,66055.0,0.22440242]
[1721770679963,0.47017973,66056.0,66055.0,0.22440242]
[1721770682221,0.31879373,66056.0,66055.0,0.37579042]
[1721770682421,0.31879373,66056.0,66055.0,1.34142041]
[1721770682621,0.31879373,66056.0,66055.0,1.36442041]
[1721770682862,0.30253783,66056.0,66055.0,1.36442041]
[1721770683266,0.30253783,66056.0,66055.0,1.35942041]
[1721770683611,0.30253783,66056.0,66055.0,1.36042041]
[1721770683816,0.30253783,66056.0,66055.0,1.36040485]
[1721770684117,0.30353783,66056.0,66055.0,1.36940485]
[1721770684572,0.30353783,66056.0,66055.0,1.41940485]
[1721770684946,0.30353783,66056.0,66055.0,1.72218185]
[1721770685532,0.30453783,66056.0,66055.0,1.73618185]
[1721770685964,0.30453783,66056.0,66055.0,1.83618185]
[1721770687133,0.30453783,66056.0,66055.0,1.71044133]
[1721770687287,0.30453783,66056.0,66055.0,1.83617874]
[1721770690584,0.30453783,66056.0,66055.0,1.83617876]
[1721770691609,0.30453783,66056.0,66055.0,1.73617876]
[1721770693271,0.30453783,66056.0,66055.0,1.83817876]
[1721770693647,0.30453783,66056.0,66055.0,1.83617876]
[1721770693847,0.30453783,66056.0,66055.0,1.83617875]
[1721770697914,0.30453783,66056.0,66055.0,1.83817875]
[1721770699761,0.30537783,66056.0,66055.0,1.83817875]
[1721770700821,0.30537783,66056.0,66055.0,1.83817787]
[1721770702006,0.30537783,66056.0,66055.0,1.64887787]
[1721770702239,0.30537783,66056.0,66055.0,1.83617787]
[1721770704000,0.30537783,66056.0,66055.0,1.71044133]
[1721770704203,0.30537783,66056.0,66055.0,1.83817787]
[1721770707191,0.30537783,66056.0,66055.0,1.83617787]
[1721770707608,0.30537783,66056.0,66055.0,1.83617788]
[1721770708877,0.30537783,66056.0,66055.0,1.73617788]
[1721770710827,0.30537783,66056.0,66055.0,1.61044133]
[1721770711025,0.30537783,66056.0,66055.0,1.73617791]
[1721770711253,0.30537783,66056.0,66055.0,1.83617791]
[1721770712218,0.30537783,66056.0,66055.0,2.07981271]
[1721770713230,0.30537783,66056.0,66055.0,2.02678275]
[1721770713438,0.30537783,66056.0,66055.0,2.07207315]
[1721770714082,0.30537783,66056.0,66055.0,1.71244133]
[1721770714259,0.30537783,66056.0,66055.0,2.07210677]
[1721770716526,0.30537783,66056.0,66055.0,2.02678274]
[1721770716732,0.30537783,66056.0,66055.0,2.09476879]
[1721770717357,0.30502556,66056.0,66055.0,2.09476879]
[1721770717560,0.30502556,66056.0,66055.0,2.43052469]
[1721770718563,0.30502556,66056.0,66055.0,2.46252276]
[1721770718767,0.30502556,66056.0,66055.0,2.76529976]
[1721770719033,0.30502556,66056.0,66055.0,2.82816282]
[1721770719898,0.30402556,66056.0,66055.0,2.71216282]
[1721770720104,0.30402556,66056.0,66055.0,2.82816282]
[1721770720450,0.30402556,66056.0,66055.0,2.81416282]
[1721770720650,0.30302556,66056.0,66055.0,2.81416282]
[1721770720853,0.30302556,66056.0,66055.0,2.10121833]
[1721770721055,0.30302556,66056.0,66055.0,2.81408936]
[1721770721454,0.30302556,66056.0,66055.0,2.82808936]
[1721770721862,0.30302556,66056.0,66055.0,2.81408936]
[1721770722162,0.30302556,66056.0,66055.0,2.82808936]
[1721770724320,0.30302556,66056.0,66055.0,2.82808887]
[1721770724800,0.30302556,66056.0,66055.0,2.98758887]
[1721770725000,0.00084,66056.0,66055.0,3.59359504]
[1721770725204,0.00084,66056.0,66055.0,3.98740204]
[1721770725403,0.00084,66056.0,66055.0,3.85137645]
[1721770725607,0.00084,66056.0,66055.0,3.88171645]
[1721770725808,0.00084,66056.0,66055.0,3.93050324]
[1721770726009,0.00084,66056.0,66055.0,4.08763996]
[1721770726614,0.00084,66056.0,66055.0,4.07363996]
[1721770726775,0.00084,66056.0,66055.0,4.08763996]
[1721770726971,0.00084,66056.0,66055.0,4.07363996]
[1721770727233,0.00084,66056.0,66055.0,3.91650324]
[1721770727684,0.00084,66056.0,66055.0,3.61612376]
[1721770727885,0.00084,66056.0,66055.0,3.91639154]
[1721770728167,0.00084,66056.0,66055.0,3.93039154]
[1721770730946,0.00084,66056.0,66055.0,3.86754188]
[1721770731148,0.00084,66056.0,66055.0,3.93039565]
[1721770731759,0.00084,66056.0,66055.0,3.62761683]
[1721770731996,0.00084,66056.0,66055.0,3.57883004]
[1721770732596,0.00084,66056.0,66055.0,3.10888506]
[1721770732803,0.00084,66056.0,66055.0,3.57883244]
[1721770733024,0.00084,66056.0,66055.0,3.88160944]
[1721770735055,0.00084,66056.0,66055.0,4.23944351]
[1721770735305,0.00084,66069.0,66068.0,1.211513]
[1721770735440,0.00084,66069.0,66068.0,2.17494855]
[1721770735803,0.00084,66069.0,66068.0,2.08436961]
[1721770736012,0.00084,66069.0,66068.0,2.1749491]
[1721770737035,0.00084,66069.0,66068.0,2.1889491]
[1721770737255,0.00084,66069.0,66068.0,2.09836961]
[1721770737684,0.00084,66069.0,66068.0,2.11236961]
[1721770738752,0.00084,66069.0,66068.0,2.11237162]
[1721770740692,0.00084,66069.0,66068.0,2.05819931]
[1721770741757,0.00084,66069.0,66068.0,2.12609521]
[1721770741971,0.00084,66069.0,66068.0,1.59683291]
[1721770742135,0.00084,66069.0,66068.0,2.13516256]
[1721770742628,0.00084,66069.0,66068.0,1.79949403]
[1721770742833,0.00084,66069.0,66068.0,2.13516376]
[1721770743153,0.00084,66069.0,66068.0,2.39933033]
[1721770743486,0.00084,66069.0,66068.0,2.06726769]
[1721770743692,0.00084,66069.0,66068.0,2.3088027]
[1721770743889,0.00084,66069.0,66068.0,2.39933101]
[1721770745032,0.00084,66069.0,66068.0,2.34632358]
[1721770745449,0.00084,66069.0,66068.0,2.34631869]
[1721770748857,0.00084,66069.0,66068.0,2.34631109]
[1721770749427,0.00084,66069.0,66068.0,2.25579835]
[1721770749811,0.00084,66069.0,66068.0,2.34630919]
[1721770750026,0.00084,66069.0,66068.0,2.25579835]
[1721770750479,0.00084,66069.0,66068.0,2.34631014]
[1721770750677,0.00084,66069.0,66068.0,2.34631015]
[1721770751217,0.00084,66069.0,66068.0,2.25579835]
[1721770751500,0.00084,66069.0,66068.0,2.16849835]
[1721770751661,0.00084,66069.0,66068.0,2.25579835]
[1721770752089,0.00084,66069.0,66068.0,1.9201431]
[1721770752265,0.00084,66069.0,66068.0,2.25579691]
[1721770755421,0.00084,66069.0,66068.0,1.60589307]
[1721770755595,0.00084,66069.0,66068.0,2.15379457]
[1721770755917,0.00084,66069.0,66068.0,2.34433103]
[1721770756328,0.00084,66069.0,66068.0,2.25379457]
[1721770758227,0.00084,66069.0,66068.0,2.36696066]
[1721770758831,0.00084,66069.0,66068.0,2.3670018]
[1721770759040,0.00084,66069.0,66068.0,2.36700167]
[1721770759840,0.06684,66069.0,66068.0,2.36700167]
[1721770760042,0.14214,66069.0,66068.0,2.36700167]
[1721770761202,0.14214,66069.0,66068.0,2.25379686]
[1721770761830,0.00084,66069.0,66068.0,2.25379686]
[1721770762232,0.00084,66069.0,66068.0,2.25380084]
[1721770762430,0.00084,66069.0,66068.0,2.25380086]
[1721770762642,0.00084,66069.0,66068.0,2.25580086]
[1721770765566,0.00084,66069.0,66068.0,1.60589307]
[1721770765769,0.00084,66069.0,66068.0,2.25580552]
[1721770768935,0.00084,66069.0,66068.0,1.92014657]
[1721770769296,0.00084,66069.0,66068.0,2.25580553]
[1721770771243,0.00084,66069.0,66068.0,2.86174344]
[1721770772621,0.00084,66069.0,66068.0,2.75286729]
[1721770772827,0.00084,66069.0,66068.0,2.94141939]
[1721770773815,0.00084,66069.0,66068.0,2.86181939]
[1721770774234,0.00084,66069.0,66068.0,2.72572807]
[1721770774435,0.13944,66069.0,66068.0,2.72372807]
[1721770774609,0.13939,66069.0,66068.0,2.72372807]
[1721770774810,0.13939,66069.0,66068.0,2.85993058]
[1721770775047,0.13939,66069.0,66068.0,2.86193058]
[1721770775932,0.06099,66069.0,66068.0,2.86194584]
[1721770776273,0.06099,66069.0,66068.0,2.86194731]
[1721770776481,0.00079,66069.0,66068.0,2.86194731]
[1721770776684,0.00079,66069.0,66068.0,2.93994731]
[1721770777405,0.00079,66069.0,66068.0,2.80373135]
[1721770777605,0.00079,66069.0,66068.0,3.10644935]
[1721770777806,0.00079,66069.0,66068.0,2.80373135]
[1721770778246,0.00079,66069.0,66068.0,3.10644935]
[1721770779090,0.00079,66069.0,66068.0,3.16929923]
[1721770779310,0.00079,66069.0,66068.0,2.04945991]
[1721770779464,0.00079,66069.0,66068.0,3.42181133]
[1721770779807,0.00079,66069.0,66068.0,3.67234133]
[1721770780010,0.0641,66089.0,66088.0,1.059191]
[1721770780290,0.0641,66089.0,66088.0,1.97250921]
[1721770780490,0.0641,66089.0,66088.0,1.88202898]
[1721770780691,0.0641,66089.0,66088.0,1.98202898]
[1721770781310,0.0641,66092.0,66091.0,0.15]
[1721770781518,0.0641,66092.0,66091.0,1.35756622]
[1721770781635,0.0641,66092.0,66091.0,1.66017922]
[1721770781835,0.0641,66092.0,66091.0,1.99575915]
[1721770782099,0.1448,66095.0,66094.0,0.906497]
[1721770782399,0.1448,66095.0,66094.0,1.59211262]
[1721770782643,0.0641,66097.0,66095.0,1.209079]
[1721770782865,0.0641,66097.0,66095.0,1.83880061]
[1721770783038,0.4688,66101.0,66095.0,1.8964866]
[1721770783039,0.0641,66099.0,66095.0,1.8964866]
[1721770783214,0.0641,66099.0,66095.0,1.98711979]
[1721770783623,0.4688,66101.0,66095.0,2.2990806]
[1721770783833,0.002794,66100.0,66095.0,2.38971379]
[1721770784010,0.4688,66101.0,66095.0,2.49407209]
[1721770784565,0.4688,66101.0,66095.0,2.5692476]
[1721770784768,0.4688,66101.0,66095.0,2.63619216]
[1721770784941,0.06,66107.0,66095.0,2.5832476]
[1721770785496,0.06,66107.0,66095.0,2.73524524]
[1721770785712,0.06,66107.0,66095.0,2.62219077]
[1721770785925,0.06,66107.0,66095.0,2.6361882]
[1721770786129,0.06,66107.0,66095.0,2.58315743]
[1721770786306,0.06,66107.0,66095.0,2.72278709]
[1721770786543,0.06,66107.0,66095.0,2.59714763]
[1721770786954,0.06,66107.0,66095.0,2.99075163]
[1721770787066,0.06,66110.0,66095.0,2.99075163]
[1721770787270,0.002794,66109.0,66095.0,3.15025163]
[1721770787481,0.002794,66109.0,66095.0,3.21585163]
[1721770787683,0.002794,66109.0,66108.0,1.358172]
[1721770787958,0.00854,66113.0,66112.0,0.90629]
[1721770788161,0.00854,66113.0,66112.0,1.99627947]
[1721770788672,0.00854,66113.0,66112.0,1.59176347]
[1721770788876,0.00854,66113.0,66112.0,1.69376347]
[1721770789295,0.00854,66113.0,66112.0,1.59176347]
[1721770789500,0.00854,66113.0,66112.0,1.56812591]
[1721770789699,0.00854,66113.0,66112.0,1.89425499]
[1721770789901,0.00854,66113.0,66112.0,1.99625499]
[1721770790105,0.00854,66113.0,66112.0,1.69373899]
[1721770790307,0.00854,66113.0,66112.0,1.70258901]
[1721770790868,0.00854,66113.0,66112.0,1.71658901]
[1721770791333,0.00854,66113.0,66112.0,1.73058901]
[1721770791540,0.00854,66113.0,66112.0,1.77569686]
[1721770791890,0.00854,66113.0,66112.0,1.73058901]
[1721770792113,0.00854,66113.0,66112.0,1.77569686]
[1721770792636,0.00854,66113.0,66112.0,1.73058901]
[1721770792851,0.00854,66113.0,66112.0,1.60497593]
[1721770793096,0.00854,66113.0,66112.0,1.73058675]
[1721770793301,0.00854,66113.0,66112.0,1.31577075]
[1721770793506,0.00854,66113.0,66112.0,1.19015993]
[1721770793856,0.00854,66113.0,66112.0,1.49267593]
[1721770794216,0.00854,66113.0,66112.0,1.31578139]
[1721770794364,0.00854,66113.0,66112.0,1.19015993]
[1721770794731,0.00854,66113.0,66112.0,0.43512793]
[1721770794732,0.02551485,66113.0,66112.0,0.43512793]
[1721770794928,0.00854,66113.0,66112.0,0.18386993]
[1721770795156,0.02551485,66113.0,66112.0,0.18386993]
[1721770795562,0.00854,66113.0,66112.0,0.18386993]
[1721770795787,0.02551485,66113.0,66112.0,0.16101991]
[1721770796196,0.02551485,66113.0,66112.0,0.19801991]
[1721770796397,0.02551485,66113.0,66112.0,0.29801991]
[1721770797741,0.02551485,66113.0,66112.0,0.28401991]
[1721770797865,0.02551485,66113.0,66112.0,0.29801991]
[1721770798072,0.78179485,66113.0,66112.0,0.028]
[1721770798365,1.22390685,66113.0,66112.0,0.028]
[1721770800342,1.22390685,66113.0,66106.0,0.00018209]
[1721770800343,0.833547,66107.0,66106.0,0.00018209]
[1721770800560,1.3004333,66107.0,66106.0,0.00018209]
[1721770800751,0.893862,66097.0,66096.0,0.000913]
[1721770800953,1.283747,66097.0,66096.0,0.000913]
[1721770801124,1.30054045,66097.0,66096.0,0.000913]
[1721770802690,1.30054045,66097.0,66096.0,0.002913]
[1721770802858,1.30054045,66097.0,66096.0,0.004913]
[1721770803315,1.63254956,66097.0,66096.0,0.004913]
[1721770803518,1.60312545,66097.0,66096.0,0.004913]
[1721770803916,1.60312545,66097.0,66096.0,0.002913]
[1721770804124,1.75014536,66097.0,66096.0,0.002913]
[1721770804325,1.75014536,66097.0,66080.0,0.07348942]
[1721770804326,0.818345,66081.0,66080.0,0.07348942]
[1721770804529,0.151345,66074.0,66073.0,0.07348942]
[1721770804724,0.151345,66074.0,66073.0,0.22050933]
[1721770804950,0.16793653,66074.0,66073.0,0.22050933]
[1721770805330,0.16793653,66074.0,66073.0,0.32050933]
[1721770805740,0.16893653,66074.0,66073.0,0.34350933]
[1721770805920,0.16993653,66074.0,66073.0,0.35050933]
[1721770806934,0.01859153,66074.0,66073.0,0.35050933]
[1721770812168,0.01859153,66074.0,66073.0,0.50185633]
[1721770813205,0.01859153,66074.0,66073.0,0.35050933]
[1721770813606,0.01859153,66074.0,66073.0,0.80455133]
[1721770813808,0.01859153,66074.0,66073.0,0.50185633]
[1721770814011,0.002,66074.0,66073.0,0.80455133]
[1721770816228,0.002,66074.0,66073.0,1.10724633]
[1721770817329,0.002,66074.0,66073.0,1.40994133]
[1721770823565,0.002,66074.0,66073.0,1.53564523]
[1721770826389,0.002,66074.0,66073.0,1.40994133]
[1721770826563,0.002,66074.0,66073.0,1.53564607]
[1721770827348,0.002,66074.0,66073.0,1.53655907]
[1721770829790,0.002,66074.0,66073.0,1.41085433]
[1721770829936,0.002,66074.0,66073.0,1.53655752]
[1721770833408,0.002,66074.0,66073.0,1.53655754]
[1721770836598,0.002,66074.0,66073.0,1.58163708]
[1721770836775,0.002,66074.0,66073.0,1.5816371]
[1721770837585,0.002,66074.0,66073.0,1.93984018]
[1721770838587,0.002,66074.0,66073.0,1.87222052]
[1721770839533,0.002,66074.0,66073.0,2.03491995]
[1721770839729,0.002,66074.0,66073.0,1.92222052]
[1721770839932,0.002,66074.0,66073.0,1.79651763]
[1721770840177,0.002,66074.0,66073.0,1.92222066]
[1721770840354,0.002,66074.0,66073.0,2.22491566]
[1721770840597,0.002,66074.0,66073.0,2.41347002]
[1721770840773,0.0614,66084.0,66083.0,0.756622]
[1721770841013,0.0614,66084.0,66083.0,1.45575604]
[1721770841662,0.0614,66084.0,66083.0,1.47833864]
[1721770842067,0.0614,66084.0,66083.0,1.48733864]
[1721770842273,0.0634,66084.0,66083.0,1.49633864]
[1721770842635,0.0634,66084.0,66083.0,1.51892124]
[1721770843257,0.0634,66084.0,66083.0,0.94464191]
[1721770843461,0.0634,66084.0,66083.0,1.40597984]
[1721770846972,0.0634,66084.0,66083.0,1.40597991]
[1721770849275,0.0634,66084.0,66083.0,1.51916656]
[1721770849677,0.0634,66084.0,66083.0,1.4965283]
[1721770850257,0.0634,66084.0,66083.0,1.49652663]
[1721770850471,0.0634,66084.0,66083.0,1.13824647]
[1721770851529,0.0634,66084.0,66083.0,1.07033789]
[1721770853212,0.0634,66084.0,66083.0,0.94464191]
[1721770855300,0.002,66084.0,66083.0,1.24729091]
[1721770858603,0.002,66084.0,66083.0,1.3729869]
[1721770859029,0.002,66084.0,66083.0,1.49868232]
[1721770859362,0.002,66084.0,66083.0,1.37298633]
[1721770859580,0.002,66084.0,66083.0,1.41834883]
[1721770860820,0.002,66084.0,66083.0,1.47034883]
[1721770860985,0.00283,66084.0,66083.0,1.47034883]
[1721770862200,0.00283,66084.0,66083.0,1.47035119]
[1721770863263,0.00283,66084.0,66083.0,1.41835119]
[1721770863866,0.00283,66084.0,66083.0,1.47035119]
[1721770864475,0.00283,66084.0,66083.0,1.41835119]
[1721770865565,0.00283,66084.0,66083.0,1.29265136]
[1721770865952,0.00283,66084.0,66083.0,1.41834651]
[1721770869252,0.00283,66084.0,66083.0,1.41834598]
[1721770869876,0.00283,66084.0,66083.0,1.11569698]
[1721770870101,0.00283,66084.0,66083.0,1.11569697]
[1721770872279,0.115934,66092.0,66088.0,0.151313]
[1721770872480,0.115934,66092.0,66089.0,0.12569511]
[1721770872678,0.01381543,66091.0,66088.0,0.151313]
[1721770872867,0.01381543,66091.0,66089.0,0.27700511]
[1721770873062,0.01381543,66091.0,66086.0,0.302632]
[1721770873312,0.1513,66094.0,66089.0,0.15131]
[1721770873529,0.151298,66095.0,66091.0,0.151305]
[1721770873934,0.01381543,66094.0,66091.0,0.151305]
[1721770874428,0.01381543,66094.0,66091.0,0.151306]
[1721770874671,0.01381543,66094.0,66092.0,0.151304]
[1721770874888,0.01381543,66094.0,66091.0,0.151306]
[1721770875088,0.151297,66095.0,66091.0,0.151306]
[1721770875263,0.0666,66092.0,66091.0,0.156306]
[1721770875694,0.08041543,66092.0,66091.0,0.005]
[1721770875899,0.08041543,66092.0,66091.0,0.156306]
[1721770876228,0.08041543,66092.0,66091.0,0.160306]
[1721770876630,0.08041543,66092.0,66091.0,0.155306]
[1721770876857,0.08041543,66092.0,66091.0,0.151306]
[1721770877053,0.08141543,66092.0,66091.0,0.159306]
[1721770877424,0.08141543,66092.0,66091.0,0.167306]
[1721770878416,0.08136543,66092.0,66091.0,0.167306]
[1721770880453,0.08136543,66092.0,66091.0,0.61693891]
[1721770880663,0.01481543,66092.0,66091.0,0.76563169]
[1721770881039,0.01481543,66092.0,66091.0,0.46301869]
[1721770882689,0.01481543,66092.0,66091.0,0.46301817]
[1721770886109,0.01481543,66092.0,66091.0,0.46301816]
[1721770888930,0.01405643,66092.0,66091.0,0.46301816]
[1721770889564,0.01405643,66092.0,66091.0,0.33732591]
[1721770889819,0.01405643,66092.0,66091.0,0.46301768]
[1721770894416,0.01405643,66092.0,66091.0,0.76563068]
[1721770894617,0.01405643,66092.0,66091.0,1.1417331]
[1721770894618,0.001,66092.0,66091.0,1.1417331]
[1721770894825,0.001,66092.0,66091.0,2.0401971]
[1721770895025,0.001,66092.0,66091.0,2.0855661]
[1721770895369,0.001,66092.0,66091.0,2.08542706]
[1721770895568,0.001,66092.0,66091.0,2.07214361]
[1721770895771,0.001,66092.0,66091.0,2.17214361]
[1721770896280,0.001,66092.0,66091.0,2.1411591]
[1721770896485,0.001,66092.0,66091.0,2.46871146]
[1721770896827,0.001,66092.0,66091.0,3.16686067]
[1721770897029,0.001,66092.0,66091.0,3.26885663]
[1721770897246,0.002,66092.0,66091.0,3.12732146]
[1721770897429,0.002,66092.0,66091.0,3.72937413]
[1721770897677,0.001,66092.0,66091.0,3.72548817]
[1721770897876,0.002,66092.0,66091.0,3.73948817]
[1721770898078,0.001,66092.0,66091.0,4.08323167]
[1721770898434,0.00083,66094.0,66093.0,2.172256]
[1721770898609,0.00083,66094.0,66093.0,3.76770202]
[1721770898962,0.00083,66094.0,66093.0,3.80752897]
[1721770899370,0.00083,66106.0,66105.0,1.656666]
[1721770899598,0.00083,66106.0,66105.0,2.61958673]
[1721770899791,0.00083,66106.0,66105.0,2.73297563]
[1721770900213,0.00083,66106.0,66105.0,2.86985316]
[1721770900367,0.00083,66106.0,66105.0,3.08218581]
[1721770900568,0.00083,66106.0,66105.0,3.08217791]
[1721770900949,0.00083,66106.0,66105.0,3.27060674]
[1721770901068,0.00854,66113.0,66112.0,1.602332]
[1721770901264,0.00854,66113.0,66112.0,2.61268591]
[1721770901484,0.00854,66113.0,66112.0,2.77218591]
[1721770901900,0.00854,66113.0,66112.0,3.11764514]
[1721770902157,0.00854,66113.0,66112.0,3.2758596]
[1721770902387,0.00854,66113.0,66112.0,3.12953009]
[1721770902534,0.00854,66113.0,66112.0,3.02753009]
[1721770902733,0.00854,66113.0,66112.0,3.04153009]
[1721770902937,0.00854,66113.0,66112.0,2.68609732]
[1721770903205,0.00854,66113.0,66112.0,2.7986188]
[1721770903408,0.07642259,66114.0,66112.0,2.8126188]
[1721770903665,0.00853,66122.0,66112.0,2.8126188]
[1721770903666,0.00853,66122.0,66121.0,0.53871]
[1721770903889,0.00853,66122.0,66121.0,1.19416083]
[1721770903890,0.02234099,66122.0,66121.0,1.19416083]
[1721770904080,0.02234099,66122.0,66121.0,1.14918753]
[1721770904314,0.14999999,66125.0,66124.0,0.58071]
[1721770904462,0.14999999,66125.0,66124.0,1.10072991]
[1721770904662,0.14999999,66125.0,66124.0,1.04367299]
[1721770904909,0.14999999,66125.0,66124.0,1.16925372]
[1721770905093,0.14999999,66125.0,66124.0,1.12431064]
[1721770905296,0.11097072,66125.0,66124.0,0.99872991]
[1721770905624,0.08810024,66125.0,66124.0,1.52709558]
[1721770905809,0.08804363,66125.0,66124.0,1.52709558]
[1721770906002,0.08804363,66125.0,66124.0,1.06618986]
[1721770906213,0.08804363,66125.0,66124.0,1.52699636]
[1721770906440,0.08804363,66125.0,66124.0,1.33405529]
[1721770907184,0.08804363,66125.0,66124.0,1.42387475]
[1721770907792,0.08804363,66125.0,66124.0,1.40136838]
[1721770908354,0.0001,66132.0,66126.0,0.44151]
[1721770908579,0.0001,66132.0,66126.0,0.71152991]